[Event "Budapest IM-A ONE WEEK Feb 2024"]
[Site "Budapest"]
[Date "2024.02.27"]
[Round "2.3"]
[White "Szeberenyi, Adam"]
[Black "Dudognon, Thibault"]
[Result "0-1"]
[ECO "D20"]
[WhiteElo "2255"]
[BlackElo "2388"]
[Annotator "TA"]
[PlyCount "54"]
[EventDate "2024.02.25"]
[EventType "tourn"]
[EventCountry "HUN"]
[SourceTitle "playchess.com"]
[Source "ChessBase"]
[SourceQuality "1"]
[TimeControl "5400+30"]

{[%evp 9,54,56,50,27,22,25,-18,0,0,0,2,-34,-45,-51,15,-35,0,-93,-96,-83,-89,-106,-106,-110,-107,-119,-97,-130,-127,-125,-121,-134,-37,-58,-61,-65,466,-471,-460,-649,-498,-29989,-29990,-29994,-625,-29995,-29996]} 1. d4 {[%emt 0:00:03]} d5 {[%emt 0:03:08]} 2. c4 {[%emt 0:00:37]} dxc4 {[%emt 0:00:25]} 3. e3 {[%emt 0:00:04]} e5 {[%emt 0:00:07][%cal Be7e5,Be5e4][%mdl 32]} 4. Bxc4 {[%emt 0:00:07]} Nc6 {[%emt 0:00:03]} 5. Nf3 {[%emt 0:05:26][%cal Bg1f3,Bf3d2,Bd2c4][%mdl 32]} e4 {[%emt 0:00:04]} 6. Nfd2 {[%emt 0:03:59]} (6. Qb3 $5 Nh6 7. Nfd2 $14) 6... Qg5 {[%emt 0:00:06]} 7. g3 {[%emt 0:06:27]} Qg6 {[%emt 0:02:25]} 8. Nc3 {[%emt 0:01:53] The position is equal.} Nf6 {[%emt 0:00:09]} 9. Bb5 {[%emt 0:13:26] d5 would now be deadly.} Bd7 {[%emt 0:02:25]} 10. Nc4 {[%emt 0:02:01]} Bd6 {[%emt 0:03:43]} 11. Qb3 {[%emt 0:13:24]} Qf5 {[%emt 0:05:57]} ({Black should play} 11... a6 $15 12. Nxd6+ cxd6) 12. Bd2 {[%emt 0:05:09]} (12. Nxd6+ $11 cxd6 13. Be2) 12... O-O {[%emt 0:22:25]} 13. O-O-O {[%emt 0:06:24]} (13. Nxd6 $1 $11 cxd6 14. Be2) 13... a6 {[%emt 0:02:37]} 14. Nxd6 {[%emt 0:01:56]} cxd6 {[%emt 0:00:07]} 15. Be2 {[%emt 0:00:15]} b5 {[%emt 0:04:33][%cal Od7e6] White must now prevent ...Be6!} (15... Qxf2 $6 16. Rdf1 Qg2 17. Rfg1 $11) 16. g4 {[%emt 0:16:38]} Nxg4 {[%emt 0:00:47]} 17. Bxg4 {[%emt 0:01:10]} Qxg4 {[%emt 0:00:05]} 18. Qd5 {[%emt 0:00:25]} Nb4 $36 {[%emt 0:18:25][%mdl 2048] Black is on the roll.} 19. Qxd6 {[%emt 0:02:00]} Nd3+ {[%emt 0:00:59]} 20. Kb1 {[%emt 0:00:55] [#]} b4 {[%emt 0:05:31] Black is more active.} (20... Nxf2 21. Rhg1 Nxd1 22. Rxg4 Nxc3+ 23. Bxc3 $17) ({Black should try} 20... Qe6 $1 $17 {[%cal Re6d6]} 21. Qg3 b4) 21. Rhg1 $15 {[%emt 0:13:36]} bxc3 {[%emt 0:07:33]} 22. Bxc3 {[%emt 0:00:03]} (22. Rxg4 $2 Bxg4 23. Bxc3 Bxd1 $19) 22... Qf5 {[%emt 0:00:22][%mdl 8192] [#]} (22... Qe6 $2 23. Rxg7+ Kh8 24. Rg8+ Kxg8 25. Rg1+ $18) (22... Rfd8 $15 {stays ahead.} 23. d5 (23. Rxg4 Bxg4 24. Qc6 Bxd1 $17) 23... Ba4) 23. Qh6 $4 {[%emt 0:01:40][%mdl 8192]} (23. Rxg7+ $1 $18 {is the narrow road to win.} Kxg7 24. Rg1+ Qg6 (24... Kh8 $2 25. d5+ f6 26. Qe7 $18) 25. d5+ (25. Rxg6+ hxg6 26. d5+ Kh6 $18) 25... f6 26. Rxg6+ (26. Qxd7+ Rf7 $18) 26... hxg6 27. Qxd7+ Rf7 28. Qe6) 23... g6 $1 $19 {[%emt 0:04:16]} ({Worse is} 23... Nxf2 24. Qxg7#) 24. Rg3 {[%emt 0:02:51]} (24. Qg5 $142) 24... Rac8 {[%emt 0:01:46]} ({And not} 24... Qxf2 25. d5 f6 26. Rxg6+ hxg6 27. Qxg6+ Kh8 28. Qh6+ Kg8 29. Qg6+ Kh8 30. Qh6+ Kg8 31. Qg6+ $11) 25. Rdg1 {[%emt 0:00:23] [#]} (25. Qg5 $19) 25... Rxc3 $1 {[%emt 0:00:48]} 26. Rg5 {[%emt 0:00:03] [#]} (26. Ka1 Qxf2) 26... Rc1+ $1 {[%emt 0:00:50]} 27. Rxc1 {[%emt 0:00:25]} Qxf2 {[%emt 0:00:03] Weighted Error Value: White=0.80/Black=0.55.  Loses game:     	---       	Black=1      Missed win:     	White=1     	---        Mistake:       	White=4     	Black=2      Inaccurate:     	White=2     	Black=1      OK:         	White=2     	Black=7      Best:        	White=2     	Black=2      Strong:       	---       	Black=1} 0-1

[Event "Budapest IM-A ONE WEEK Feb 2024"]
[Site "Budapest"]
[Date "2024.02.27"]
[Round "2.4"]
[White "Ulasevich, Sergei"]
[Black "Papp, Sarah"]
[Result "1/2-1/2"]
[ECO "B22"]
[WhiteElo "2261"]
[BlackElo "2279"]
[Annotator "TA"]
[PlyCount "120"]
[EventDate "2024.02.25"]
[EventType "tourn"]
[EventCountry "HUN"]
[SourceTitle "playchess.com"]
[Source "ChessBase"]
[SourceQuality "1"]
[TimeControl "5400+30"]

{[%evp 14,120,34,13,45,2,0,-10,19,4,12,6,0,0,11,4,17,-39,-45,-46,-46,-68,-58,-113,-107,-100,-116,-116,-95,-98,-97,-116,-68,-66,-79,-77,-83,-78,-16,-14,-13,-47,-27,-77,-69,-94,-92,-85,-89,-92,-87,-70,-73,-73,-83,-129,-158,-127,-131,-147,-109,-110,-110,-115,-118,-151,-143,-140,-134,-128,-128,-128,-128,-102,-63,-668,-326,-183,-8,-8,-8,-8,0,0,0,0,0,0,0,0,0,0,0,0,0,0,0,0,0,0,0,0,0,0,0,0,8,8,8]} 1. e4 {[%emt 0:00:17]} c5 {[%emt 0:00:04][%cal Bc7c5,Bc5c4][%mdl 32]} 2. c3 {[%emt 0:00:42]} Nf6 {[%emt 0:00:13]} 3. e5 {[%emt 0:00:05]} Nd5 {[%emt 0:00:04]} 4. Nf3 {[%emt 0:00:06]} Nc6 {[%emt 0:00:17]} 5. Bc4 {[%emt 0:00:11]} Nb6 {[%emt 0:00:15]} 6. Bb3 {[%emt 0:00:05]} c4 {[%emt 0:00:43]} 7. Bc2 {[%emt 0:00:10]} d5 {[%emt 0:00:30]} 8. exd6 {[%emt 0:00:07]} e5 {[%emt 0:00:14][%cal Of7f5]} 9. d3 {[%emt 0:03:21]} Qxd6 {[%emt 0:08:54]} 10. Na3 {[%emt 0:05:21]} Be6 {[%emt 0:04:19]} 11. Ng5 {[%emt 0:08:51]} O-O-O {[%emt 0:16:16]} (11... cxd3 {seems wilder.} 12. Nb5 Qd7 13. Nxe6 fxe6 14. Qxd3 Qxd3 15. Bxd3 O-O-O) 12. Nxc4 {[%emt 0:13:01]} Nxc4 {[%emt 0:02:14]} 13. dxc4 {[%emt 0:00:07]} Qxd1+ {[%emt 0:02:02]} 14. Bxd1 {[%emt 0:00:08]} Bxc4 {[%emt 0:00:07][%cal Oc6b4]} 15. b3 {[%emt 0:03:40]} (15. Bb3 $11 Bxb3 16. axb3) 15... Bd5 $1 $15 {[%emt 0:00:18][%cal Oh7h6]} 16. Bg4+ {[%emt 0:02:19]} Kc7 {[%emt 0:03:08][%cal Oh7h6]} 17. Bf3 {[%emt 0:06:11]} e4 {[%emt 0:07:49]} 18. Bf4+ {[%emt 0:30:16]} (18. Bxe4 $2 Bxe4 19. Nxf7 (19. Nxe4 $2 Re8 $19) 19... Re8 (19... Bxg2 20. Rg1 $11) 20. Bf4+ Kc8 $19) (18. Bh5 $1 $15 f6 19. Nf7 Bxf7 20. Bxf7) 18... Bd6 $17 {[%emt 0:01:09]} 19. Bxd6+ {[%emt 0:00:07]} (19. Bxe4 $2 {is the wrong capture.} Bxf4 20. Bxd5 Rxd5 $19) 19... Rxd6 {[%emt 0:00:07]} 20. Be2 {[%emt 0:02:01]} (20. Bxe4 $2 {too greedy.} Bxe4 21. Nxe4 Re8 $19) 20... h6 {[%emt 0:07:49]} 21. Nh3 {[%emt 0:00:04]} g5 {[%emt 0:00:07] Inhibits Nf4.} 22. O-O-O {[%emt 0:00:13]} f5 {[%emt 0:06:44]} ({Black should play} 22... Rhd8 $17 23. Rhe1 Re8) 23. c4 {[%emt 0:05:51]} Be6 {[%emt 0:03:47]} 24. Rxd6 {[%emt 0:00:08]} Kxd6 {[%emt 0:00:15]} 25. f4 {[%emt 0:00:05]} exf3 {[%emt 0:12:36]} (25... Rg8 $17 26. Rd1+ Ke7) 26. Bxf3 $11 {[%emt 0:02:56]} Nd4 {[%emt 0:02:37] ...g4 would now be deadly.} 27. Bxb7 {[%emt 0:04:59]} Rb8 {[%emt 0:00:45]} 28. Ba6 {[%emt 0:00:30] [#]} (28. Rd1 $11 Kc5 29. Bf3) 28... Rb6 $1 $17 {[%emt 0:00:53]} 29. Rd1 {[%emt 0:06:19] [#]} Ke5 {[%emt 0:01:19]} 30. Bb5 {[%emt 0:01:08]} Nxb5 {[%emt 0:00:40]} 31. cxb5 {[%emt 0:00:05]} Rxb5 {[%emt 0:00:06][%mdl 4096] Endgame. KRB-KRN} 32. Nf2 {[%emt 0:00:30]} Bd5 {[%emt 0:03:18]} 33. g3 {[%emt 0:00:52]} Be4 {[%emt 0:03:50]} 34. Rd8 {[%emt 0:01:41]} ({Better is} 34. Rd2) 34... Rc5+ {[%emt 0:00:38]} 35. Kd1 {[%emt 0:00:16]} Rd5+ {[%emt 0:01:37]} 36. Rxd5+ {[%emt 0:00:05]} Bxd5 {[%emt 0:00:11] KB-KN} 37. Kd2 {[%emt 0:00:14]} Kd4 {[%emt 0:02:18]} 38. Nd3 {[%emt 0:00:42]} Be4 {[%emt 0:01:45]} 39. Nf2 {[%emt 0:02:02]} Bb1 {[%emt 0:01:11]} 40. a3 {[%emt 0:00:14]} f4 {[%emt 0:01:45]} 41. gxf4 {[%emt 0:00:52]} gxf4 {[%emt 0:00:02]} 42. Ng4 {[%emt 0:01:27]} h5 {[%emt 0:00:17]} 43. Nf6 {[%emt 0:00:04]} Bg6 {[%emt 0:03:35] Threatens to win with ...f3.} 44. a4 $2 {[%emt 0:02:45][%mdl 8192]} (44. b4 $15) 44... Bf7 {[%emt 0:02:39]} (44... a5 $142 45. Ng8 f3) 45. b4 $19 {[%emt 0:01:02]} Kc4 $2 {[%emt 0:00:46]} (45... f3 $19 {...h4 is the strong threat.} 46. b5 Bb3 47. Nxh5 Bxa4) 46. b5 $11 {[%emt 0:00:02] The position is equal.} Kb4 {[%emt 0:00:15]} 47. Nd7 {[%emt 0:00:13]} Kxa4 {[%emt 0:02:25]} 48. b6 {[%emt 0:00:03]} axb6 {[%emt 0:00:04]} (48... Bd5 {looks sharper.} 49. bxa7 Ka5 50. Nf6 Bf3) 49. Nxb6+ {[%emt 0:00:03]} Kb4 {[%emt 0:01:02] Strongly threatening ...Be6.} (49... Kb5 $5 50. Nd7 $8 Bd5 $11) 50. Nd7 {[%emt 0:00:52]} Bg6 {[%emt 0:00:51]} 51. Ke2 {[%emt 0:00:05]} Bf5 {[%emt 0:00:19]} 52. Nf6 {[%emt 0:00:15]} Bg4+ {[%emt 0:00:08]} 53. Kd3 {[%emt 0:00:11]} Kc5 {[%emt 0:00:22]} 54. Ke4 {[%emt 0:00:28] Dodges Bf3+} f3 {[%emt 0:00:10]} 55. Ke3 {[%emt 0:00:22]} Kd6 {[%emt 0:00:05]} 56. Nxg4 {[%emt 0:01:06]} (56. Ne4+ Ke5 $15) 56... hxg4 {[%emt 0:00:01]} 57. h3 {[%emt 0:00:05]} gxh3 {[%emt 0:00:05] ( -> ...h2)} 58. Kxf3 {[%emt 0:00:03][%cal Be3f3,Bf3g2,Bg2h1][%mdl 32]} h2 {[%emt 0:00:04]} 59. Kg2 {[%emt 0:00:02]} h1=Q+ 60. Kxh1 Ke5 {And White is the lucky defender.   Weighted Error Value: White=0.27 (precise) /Black=0.21 (precise) .  Loses game:     	White=1     	---        Mistake:       	White=4     	Black=3      Inaccurate:     	White=2     	Black=2      OK:         	White=21    	Black=24     Best:        	White=9     	Black=2      Strong:       	---       	Black=2} 1/2-1/2

[Event "Budapest IM-A ONE WEEK Feb 2024"]
[Site "Budapest"]
[Date "2024.02.27"]
[Round "2.5"]
[White "Toth-Goczo, Melinda"]
[Black "Horvath, David"]
[Result "0-1"]
[ECO "C01"]
[WhiteElo "2201"]
[BlackElo "2330"]
[Annotator "TA"]
[PlyCount "64"]
[EventDate "2024.02.25"]
[EventType "tourn"]
[EventCountry "HUN"]
[SourceTitle "playchess.com"]
[Source "ChessBase"]
[SourceQuality "1"]
[TimeControl "5400+30"]

{[%evp 9,64,-3,0,-44,-15,-19,-6,-25,-18,-18,-10,-12,-2,-15,-17,-22,-23,-52,-20,-15,-31,-55,-59,-54,-43,-116,-107,-109,-107,-121,-107,-122,-102,-119,-75,-74,-72,-119,-126,-119,-119,-139,-139,-290,-139,-662,-656,-758,-756,-1472,-1280,-1455,-1373,-1358,-1309,-29989,-565]} 1. d4 {[%emt 0:00:04]} e6 {[%emt 0:00:09]} 2. e4 {[%emt 0:01:28]} d5 {[%emt 0:00:07]} 3. exd5 {[%emt 0:00:20]} exd5 {[%emt 0:00:16]} 4. Bd3 {[%emt 0:00:26]} Nf6 {[%emt 0:05:33]} 5. c3 {[%emt 0:07:34]} Bd6 {[%emt 0:13:18]} 6. Qc2 {[%emt 0:20:35]} h6 {[%emt 0:11:18]} 7. Ne2 {[%emt 0:12:20]} O-O {[%emt 0:00:22]} 8. Bf4 {[%emt 0:05:18] The position is equal.} Bxf4 {[%emt 0:04:50]} 9. Nxf4 {[%emt 0:02:21]} Re8+ {[%emt 0:00:02]} 10. Ne2 {[%emt 0:00:26]} b6 {[%emt 0:11:45]} 11. O-O {[%emt 0:03:12]} c5 {[%emt 0:00:18] aiming for ...c4.} 12. b3 {[%emt 0:17:23]} Nc6 {[%emt 0:11:20]} 13. Bb5 {[%emt 0:03:39]} Qd6 {[%emt 0:03:36]} 14. Nd2 {[%emt 0:02:07]} Bg4 {[%emt 0:05:18]} 15. f3 {[%emt 0:00:55]} Bd7 {[%emt 0:01:44]} 16. Bxc6 {[%emt 0:06:05]} Qxc6 {[%emt 0:11:41]} 17. Qd3 {[%emt 0:04:57]} ({White should play} 17. Rfe1 $15) 17... c4 {[%emt 0:08:37]} 18. bxc4 {[%emt 0:00:03]} dxc4 {[%emt 0:00:06]} 19. Nxc4 {[%emt 0:00:09] [#]} Bf5 $1 {[%emt 0:00:07][%mdl 512] Black is more active.} 20. Qxf5 {[%emt 0:00:28]} Qxc4 {[%emt 0:00:03]} 21. Ng3 {[%emt 0:07:47]} Qxc3 {[%emt 0:00:08]} 22. Rad1 {[%emt 0:00:09]} Rad8 {[%emt 0:05:02]} 23. Ne4 {[%emt 0:00:27]} (23. Qd3 $142 Qb4 24. Ne4) 23... Qe3+ $17 {[%emt 0:00:06]} 24. Kh1 {[%emt 0:02:00]} Nd5 {[%emt 0:00:57]} ({Not} 24... Rxd4 25. Rde1 (25. Nxf6+ gxf6 26. Rxd4 Qxd4 $17) 25... Rdxe4 26. fxe4 $16) 25. Rfe1 {[%emt 0:00:52]} Qa3 {[%emt 0:01:27][%cal Oe8e7]} 26. Rd2 $2 {[%emt 0:00:33] [#]} (26. Qg4 $17) 26... Qb4 {[%emt 0:03:15]} (26... g6 $1 $19 {[%cal Rg6f5] and Black stays clearly on top.} 27. Qh3 Kg7) 27. h4 $2 {[%emt 0:01:06][%mdl 8192] [#] White does not recover from this.} (27. Rdd1 $17) 27... Rxe4 $1 $19 {[%emt 0:00:52][%mdl 512]} 28. fxe4 {[%emt 0:00:15]} (28. Qxe4 Qxd2) 28... Qxd2 {[%emt 0:00:06]} 29. Rf1 {[%emt 0:00:01]} Ne3 {[%emt 0:00:39][%csl Ge3][%cal Rd2g2]} 30. Qxf7+ {[%emt 0:00:14]} Kh8 {[%emt 0:00:05]} 31. Rg1 {[%emt 0:00:40]} Qxd4 {[%emt 0:00:13]} 32. Qe7 {[%emt 0:00:34]} Qd6 {[%emt 0:01:17] Weighted Error Value: White=0.80/Black=0.14 (very precise) .  Loses game:     	White=1     	---        Mistake:       	White=3     	Black=1      Inaccurate:     	White=1     	Black=3      OK:         	White=8     	Black=10} (32... Ng4 $142 33. Re1 Qd2 (33... Qf6 $2 34. Qxf6 gxf6 35. g3 $19) 34. Rf1 Qd3 (34... Qd6 $2 35. Qxd6 Rxd6 36. g3 $19) 35. Kg1 Qe3+ 36. Kh1 Qg3 37. Qxd8+ Kh7 38. Qh8+ Kxh8 39. Rf8+ Kh7 40. Kg1 Qe3+ (40... Qxh4 $2 41. Kf1 $19) 41. Rf2 Qxf2+ 42. Kh1 Qf1#) 0-1

[Event "Budapest IM-A ONE WEEK Feb 2024"]
[Site "Budapest"]
[Date "2024.02.27"]
[Round "3"]
[White "Dudognon, Thibault"]
[Black "Ulasevich, Sergei"]
[Result "1-0"]
[ECO "B67"]
[WhiteElo "2388"]
[BlackElo "2261"]
[Annotator "TA"]
[PlyCount "61"]
[EventDate "2024.02.25"]
[EventType "tourn"]
[EventCountry "HUN"]
[SourceTitle "playchess.com"]
[Source "ChessBase"]
[SourceQuality "1"]
[TimeControl "5400+30"]

{[%evp 17,61,23,29,0,13,12,20,23,32,14,35,45,46,47,51,48,60,34,101,77,75,28,13,32,122,113,130,120,184,166,165,160,158,158,321,324,320,334,315,313,757,787,1240,1252,29998,29999]} 1. e4 {[%emt 0:00:07]} c5 {[%emt 0:00:31]} 2. Nf3 {[%emt 0:00:07]} d6 {[%emt 0:00:59]} 3. d4 {[%emt 0:00:07]} cxd4 {[%emt 0:00:04]} 4. Nxd4 {[%emt 0:00:06]} Nf6 {[%emt 0:00:03]} 5. Nc3 {[%emt 0:00:05]} Nc6 {[%emt 0:00:13]} 6. Bg5 {[%emt 0:00:13]} e6 {[%emt 0:00:08]} 7. Qd2 {[%emt 0:00:04]} a6 {[%emt 0:00:05]} 8. O-O-O {[%emt 0:00:09]} Bd7 {[%emt 0:00:24]} 9. Nxc6 {[%emt 0:00:04]} Bxc6 {[%emt 0:07:19]} 10. Qe1 {[%emt 0:00:10][%cal Oc3d5]} Qa5 {[%emt 0:08:16]} 11. h4 {[%emt 0:00:15]} Be7 {[%emt 0:01:08]} 12. f3 {[%emt 0:02:29] The position is equal.} Qc7 {[%emt 0:14:19]} 13. Kb1 {[%emt 0:00:17]} b5 {[%emt 0:00:59]} 14. Ne2 {[%emt 0:00:10]} O-O {[%emt 0:11:14]} 15. Nd4 {[%emt 0:00:08]} Rfc8 {[%emt 0:00:46]} 16. Bd3 {[%emt 0:00:37]} b4 {[%emt 0:06:13]} 17. g4 {[%emt 0:06:06]} a5 {[%emt 0:05:10]} (17... Be8 $14) 18. h5 {[%emt 0:03:29] White is more active.} a4 {[%emt 0:01:38][%cal Ba5a4,Ba4b3][%mdl 32]} 19. Nxc6 {[%emt 0:07:47]} (19. Qxb4 $2 Rab8 20. Qd2 (20. Qc3 $2 Qb6 $19) 20... Qb6 $19) ({Better is} 19. h6 $16 {hxg7 is the strong threat.} a3 20. Nxc6 (20. Qxb4 axb2 21. Qxb2 Rcb8 $11) (20. hxg7 Qa5 $11) 20... Qxc6 21. Bd2 (21. Qxb4 $2 Rcb8 $17)) 19... Qxc6 $11 {[%emt 0:00:08]} 20. h6 $1 {[%emt 0:00:38]} b3 {[%emt 0:17:52]} 21. cxb3 $16 {[%emt 0:01:28]} (21. axb3 axb3 22. cxb3 Qb6 $15) 21... axb3 {[%emt 0:00:04]} 22. a3 $36 {[%emt 0:01:17][%mdl 2048] Keeping Black busy. The board is on fire.} (22. axb3 Qb6 23. Rc1 Rxc1+ (23... Qxb3 24. Rxc8+ Rxc8 25. Qd1 $15) 24. Bxc1 Qxb3 $11) 22... Qc5 {[%emt 0:01:38]} (22... g6 $16 23. Qb4 (23. Qh4 Qc5 $16) 23... Rcb8) 23. Be3 $1 $18 {[%emt 0:02:25]} Qa5 {[%emt 0:03:21]} 24. hxg7 {[%emt 0:03:04]} Qxe1 {[%emt 0:00:49]} 25. Rdxe1 {[%emt 0:00:06]} Kxg7 $2 {[%emt 0:01:06] [#] This costs Black the game.} (25... Nd7 $16 26. Rc1 Kxg7) 26. e5 $1 {[%emt 0:01:02][%mdl 512]} dxe5 {[%emt 0:00:18][%cal Oe5e4] [#]} 27. g5 $1 {[%emt 0:00:12][%cal Bg4g5,Bg5f6][%mdl 32]} Nd5 {[%emt 0:04:56]} 28. Rxh7+ {[%emt 0:00:20]} (28. Bxh7 $2 {too greedy.} Nxe3 29. Rxe3 Rh8 $19 (29... Bxg5 30. Rg1 $11)) 28... Kg8 $2 {[%emt 0:01:59] [#]} (28... Kf8 29. g6 fxg6 30. Bh6+ (30. Bxg6 Nxe3 31. Rxe3 Bd8 $18) 30... Ke8 31. Bb5+ (31. Bxg6+ Kd7 $18) 31... Kd8) 29. Reh1 $1 {[%emt 0:02:16] Threatening mate with Rh8+.} f5 {[%emt 0:00:47]} (29... Bxg5 30. Bxg5) 30. gxf6 $1 {[%emt 0:00:11]} Nxe3 {[%emt 0:00:28]} 31. Rg7+ {Weighted Error Value: White=0.06 (flawless) /Black=0.54.  Loses game:     	---       	Black=1      Mistake:       	White=1     	Black=4      Inaccurate:     	White=1     	Black=1      OK:         	White=3     	Black=6      Best:        	White=2     	---        Strong:       	White=4     	---        Brilliant:      	White=1     	---} 1-0

[Event "Budapest IM-A ONE WEEK Feb 2024"]
[Site "Budapest"]
[Date "2024.02.27"]
[Round "3"]
[White "Horvath, David"]
[Black "Meessen, Rudolf"]
[Result "1/2-1/2"]
[ECO "E67"]
[WhiteElo "2330"]
[BlackElo "2169"]
[Annotator "TA"]
[PlyCount "35"]
[EventDate "2024.02.25"]
[EventType "tourn"]
[EventCountry "HUN"]
[SourceTitle "playchess.com"]
[Source "ChessBase"]
[SourceQuality "1"]
[TimeControl "5400+30"]

{[%evp 24,35,9,18,0,0,-9,0,0,0,0,0,0,-22]} 1. d4 {[%emt 0:00:58]} g6 {[%emt 0:05:11]} 2. c4 {[%emt 0:10:14]} Bg7 {[%emt 0:00:53]} 3. Nf3 {[%emt 0:00:12]} d6 {[%emt 0:00:10]} 4. g3 {[%emt 0:00:06]} Nf6 {[%emt 0:00:47]} 5. Bg2 {[%emt 0:00:05]} O-O {[%emt 0:00:04]} 6. O-O {[%emt 0:00:07]} Nbd7 {[%emt 0:00:11]} 7. Nc3 {[%emt 0:03:25]} e5 {[%emt 0:00:08]} 8. Qc2 {[%emt 0:00:34]} exd4 {[%emt 0:00:05]} 9. Nxd4 {[%emt 0:00:06]} Nb6 {[%emt 0:00:03]} 10. Rd1 {[%emt 0:07:43]} Nxc4 {[%emt 0:00:04]} 11. Ncb5 {[%emt 0:00:05]} a6 {[%emt 0:00:08]} 12. Qxc4 {[%emt 0:00:34]} axb5 {[%emt 0:00:04]} 13. Nxb5 {[%emt 0:02:13] The position is equal.} Ne8 {[%emt 0:00:04]} 14. Qc2 {[%emt 0:14:22]} c6 {[%emt 0:00:15]} 15. Nxd6 {[%emt 0:16:02]} Nxd6 {[%emt 0:00:17]} 16. Bf4 $1 {[%emt 0:00:03]} Qb6 {[%emt 0:36:09]} 17. Bxd6 {[%emt 0:00:59]} Re8 {[%emt 0:00:16]} 18. Ba3 {[%emt 0:25:03] An uneventful encounter.   Weighted Error Value: White=0.00 (flawless) /Black=0.00 (flawless) .  OK:         	White=2     	Black=2      Strong:       	White=1     	---} 1/2-1/2